Cogmind - Beta 17.1 @@@ ROGUE MODE // 2026.08.20 @ 18:19:42 Player: Minty Result: Self-destructed Performance ------------- Evolutions (3) 1500 Regions Visited (9) 1800 Robots Destroyed (56) 280 Value Destroyed (1774) 1774 Prototype IDs (17) 340 Alien Tech Used (0) 0 Bonus (9872) 9872 TOTAL SCORE: 15566 Bonus ------- Follower Combat Kills 222 Prayed to X0-1V1 5000 Major X0-1V1 Interference 4650 Cogmind --------- Core Integrity 714/900 Matter 300/300 Energy 300/300 System Corruption 0% Temperature Cool (-100) Movement Treading (160) Location -7/Scraptown Parts ------- > --- POWER (2) -------- Enhanced Nuclear Core > --- PROPULSION (3) --- Light Treads Spiked Treads (fused) Spiked Treads (fused) > --- UTILITY (5) ------ Cryofiber Web (fused) Improved Heat Sink Core Analyzer Improved Light Armor Plating Self-contained Transmogrifier > --- WEAPON (4) ------- High-powered Field Laser Gauss Rifle Missile Launcher Long-range Missile Launcher (fused) > --- INVENTORY (5) ---- Small Storage Unit Large Storage Unit Machine Analyzer Improved Light Armor Plating EM Disruption Field Peak State ------------ > --- POWER ------------ Light Nuclear Core Cooled Deuterium Engine > --- PROPULSION ------- Wheel Armored Wheel > --- UTILITY ---------- Small Storage Unit Particle Charger Self-contained Transmogrifier X0-1V1's Piety Tracker > --- WEAPON ----------- Spread Laser Improved Medium Laser Improved Medium Laser Gatling Laser > --- INVENTORY -------- Improved Signal Interpreter Shield Generator EM Pulse Gun Advanced Beam Cannon Improved Assault Rifle Shock Bomb Launcher Rocket Launcher Missile Launcher [Rating: 51] Favorites ----------- Power Enhanced Nuclear Core Engine Deuterium Engine Power Core Enhanced Nuclear Core Propulsion Light Treads Treads Light Treads Leg Aluminum Leg Wheel Armored Wheel Hover Unit Cooled Airjet Flight Unit VTOL Module Utility Self-contained Transmogrifier Device Self-contained Transmogrifier Storage Small Storage Unit Processor Advanced Visual Processing Unit Hackware System Shield Protection Improved Light Armor Plating Weapon Improved Medium Laser Energy Gun Improved Medium Laser Energy Cannon Advanced Beam Cannon Ballistic Gun Improved Assault Rifle Launcher Missile Launcher Special Weapon Welding Torch Build | -11 -10 -10 -9 -9 -8 -7 -7 -7 -7 ------- Run | Yrd Mat Min Mat Min Mat Fac Sto Rec Scr Slots Evolved 6 | . . . 2 . 2 2 . . . Power . | . . . . . . . . . . Propulsion 1 | . . . . . . 1 . . . Utility 3 | . . . 2 . . 1 . . . Weapon 2 | . . . . . 2 . . . . Parts Attached 68 | . 6 4 15 2 12 16 12 . 1 Power 7 | . 1 2 . 1 1 2 . . . Engine 3 | . 1 2 . . . . . . . Core 4 | . . . . 1 1 2 . . . Reactor . | . . . . . . . . . . Propulsion 14 | . 3 1 2 1 1 3 3 . . Treads 7 | . 2 . 2 . . . 3 . . Leg 2 | . 1 1 . . . . . . . Wheel 2 | . . . . 1 1 . . . . Hover 2 | . . . . . . 2 . . . Flight 1 | . . . . . . 1 . . . Utility 24 | . . . 6 . 5 8 5 . . Device 12 | . . . 3 . 5 3 1 . . Storage . | . . . . . . . . . . Processor 7 | . . . 2 . . 4 1 . . Hackware 1 | . . . . . . 1 . . . Protection 4 | . . . 1 . . . 3 . . Artifact . | . . . . . . . . . . Weapon 23 | . 2 1 7 . 5 3 4 . 1 Energy Gun 9 | . 1 1 4 . 1 . 2 . . Energy Cannon 1 | . . . 1 . . . . . . Ballistic Gun 11 | . . . 2 . 4 2 2 . 1 Ballistic Cannon . | . . . . . . . . . . Launcher 2 | . 1 . . . . 1 . . . Special Weapon . | . . . . . . . . . . Impact Weapon . | . . . . . . . . . . Slashing Weapon . | . . . . . . . . . . Piercing Weapon . | . . . . . . . . . . Special Melee Weapon . | . . . . . . . . . . Unidentified Prototypes 9 | . . . 2 . 2 4 1 . . Parts Lost 16 | . . . . . 9 3 4 . . Power 2 | . . . . . 2 . . . . Propulsion 5 | . . . . . 3 1 1 . . Utility 4 | . . . . . 3 . 1 . . Weapon 5 | . . . . . 1 2 2 . . Highest Loss Streak 7 | . . . . . 7 2 3 . . To Critical Strikes . | . . . . . . . . . . Average Backups 6 | . 7 7 7 8 7 4 4 4 4 Power . | . 1 . . . . . . . . Propulsion . | . 3 1 . . . . . . . Utility 2 | . . 3 2 1 1 . 2 4 4 Weapon 2 | . 2 2 4 6 5 2 . . . Tool/Special . | . . . . . . . . . . Unused Backups 18 | . 3 . 2 2 6 1 . . 4 Power 1 | . . . . . . 1 . . . Propulsion 4 | . 2 . 1 . 1 . . . . Utility 10 | . 1 . 1 2 2 . . . 4 Weapon 3 | . . . . . 3 . . . . Tool/Special . | . . . . . . . . . . Average Slot Usage (%) 87 | . 79 98 99 92 95 50 87 88 92 Engine 5 | . 13 12 10 10 7 . . . . Core 3 | . . . . 1 7 . 5 7 7 Treads 12 | . 2 25 21 16 . . 14 21 21 Leg 3 | . 24 9 4 . . . . . . Wheel 2 | . . . . 3 15 . . . . Hover 1 | . . . . . . 6 5 . . Device 16 | . 6 12 18 25 21 12 13 14 15 Storage 5 | . 14 12 10 10 7 . . . . Processor 6 | . . . 4 . . 10 12 14 12 Protection 4 | . . . 6 4 2 . 6 7 7 Energy Gun 12 | . 8 25 20 21 24 . 1 7 7 Ballistic Gun 8 | . . . 2 . 6 13 25 14 11 Launcher 2 | . 7 . . . . . . 3 8 Peak Build Rating 51 | . 17 25 34 35 51 44 50 46 50 Average Rating 35 | . 9 21 30 31 39 32 45 45 48 On Entrance 26 | 6 6 17 25 33 35 10 43 44 46 Avg Prop Armor Cover (%) 4 | . . 8 4 6 . 5 2 . . Naked Turns . | . . . . . . . . . . Heaviest Build 38 | 12 13 19 27 31 38 14 29 29 35 Greatest Support 63 | 20 40 43 63 43 22 21 60 60 60 Greatest Overweight (x) 5 | . . . 1 1 5 1 . . . Average Overweight (x) . | . . . . . . . . . . Largest Inventory Capacity 8 | . 8 8 8 8 8 5 5 5 5 Average Capacity 6 | . 8 8 8 8 7 5 5 5 5 Most Carried 8 | . 8 8 8 8 8 5 5 5 5 Average Carried 6 | . 7 7 7 8 7 4 4 4 4 Final Capacity 8 | 8 8 8 8 8 5 5 5 5 5 Final Carried 8 | 6 5 8 8 8 5 3 5 4 5 Transmogrified Parts 19 | . 1 2 2 3 1 4 2 . 4 Integrity Recovered 413 | . 9 118 9 70 24 40 63 . 80 Class Distribution -------------------- 34% | Mutant 24% | Commander-Gunner 17% | Scavenger-Gunner 6% | Scavenger-Tank 5% | Gunner 4% | Skirmisher Dominant Class ---------------- Mutant | -10/Materials Mutant | -10/Mines Mutant | -9/Materials Scavenger-Mutant | -9/Mines Scavenger-Gunner | -8/Materials Mutant | -7/Factory Scavenger-Gunner | -7/Storage Commander-Gunner | -7/Recycling Commander-Gunner | -7/Scraptown Resources | -11 -10 -10 -9 -9 -8 -7 -7 -7 -7 ----------- Run | Yrd Mat Min Mat Min Mat Fac Sto Rec Scr Matter Collected 1867 | 190 92 38 361 20 198 235 713 . 20 Remotely . | . . . . . . . . . . Salvage Created 2098 | . 174 . 136 188 553 334 713 . . Parts 109 | . 10 . 7 9 22 24 37 . . Haulers Intercepted 2 | . . . . . . 1 1 . . Recyclers Shooed 3 | . . . . 1 . . 2 . . Parts Field Recycled . | . . . . . . . . . . Retrieved Matter . | . . . . . . . . . . Parts Self-Destructed . | . . . . . . . . . . Prevented . | . . . . . . . . . . Parts Restored . | . . . . . . . . . . Kills | -11 -10 -10 -9 -9 -8 -7 -7 -7 -7 ------- Run | Yrd Mat Min Mat Min Mat Fac Sto Rec Scr Combat Hostiles Destroyed 36 | . 6 . 2 3 13 4 8 . . Melee 1 | . 1 . . . . . . . . Guns 26 | . . . 2 3 11 2 8 . . AOE 8 | . 5 . . . 1 2 . . . Classes Destroyed 13 | . 3 . 2 1 3 3 1 . . Worker 4 | . 1 . . 2 . 1 . . . Builder 3 | . . . . . 3 . . . . Tunneler 2 | . . . . 1 . 1 . . . Hauler 2 | . . . . . . 1 1 . . Recycler 3 | . . . . . . 1 2 . . Mechanic 1 | . . . . . . . 1 . . Operator 1 | . . . 1 . . . . . . Watcher 3 | . 1 . 1 . . . 1 . . Swarmer 5 | . . . . . 2 3 . . . Grunt 21 | . 6 . . 3 9 1 2 . . Sentry 6 | . . . 2 . 1 . 3 . . Hunter 4 | . . . . . 1 . 3 . . Heavy 1 | . . . . . . 1 . . . Best Kill Streak 5 | . 5 . 1 5 5 4 5 . . Combat Bots Only 5 | . 4 . 1 3 5 3 2 . . Max Kills in Single Turn 2 | . 2 . 1 2 2 2 1 . . Gunslinging 1 | . . . . . 1 . . . . Exploded 2 | . 1 . . . 1 2 . . . Melee 1 | . 1 . . . . . . . . Uniques/NPCs Destroyed . | . . . . . . . . . . Combat | -11 -10 -10 -9 -9 -8 -7 -7 -7 -7 -------- Run | Yrd Mat Min Mat Min Mat Fac Sto Rec Scr Hostile Shots Fired 500 | . 46 . 112 16 133 42 151 . . Missed 166 | . 12 . 37 3 40 18 56 . . Hits 334 | . 34 . 75 13 93 24 95 . . Projectile 334 | . 34 . 75 13 93 24 95 . . Critical Strikes 9 | . . . . 1 4 1 3 . . Damage Taken 4302 | . 385 . 687 173 1488 493 1076 . . Core 970 | . 36 . 84 24 640 91 95 . . Absorbed by Shields 200 | . . . . . 200 . . . . Redirected to Shielding 12 | . . . . . 9 3 . . . Core Remaining (%) 58 | 100 . 64 . 57 14 . . . . Volleys Fired 120 | . 20 2 20 8 20 21 28 . 1 Largest 4 | . 2 2 3 2 4 3 4 . 1 Hottest 257 | . 106 106 201 136 257 78 112 . 70 Shots Fired 313 | . 23 4 42 16 77 45 105 . 1 Gun 293 | . 6 4 42 16 77 43 104 . 1 Cannon . | . . . . . . . . . . Launcher 20 | . 17 . . . . 2 1 . . Special . | . . . . . . . . . . Kinetic 185 | . . . 12 . 26 43 104 . . Thermal 107 | . 6 4 29 16 51 . . . 1 Explosive 20 | . 17 . . . . 2 1 . . Electromagnetic 1 | . . . 1 . . . . . . Robot Hit Streak 21 | . 3 3 21 7 12 4 15 . . Robot Miss Streak 4 | . 4 1 3 2 3 4 4 . . Penetration Max . | . . . . . . . . . . Secondary Targets 5 | . . . . 1 3 . 1 . . Max Gunslinging Chain 1 | . . . . 1 1 . 1 . . Shots Hit Robots 213 | . 6 3 33 13 57 21 80 . . Core Hits 140 | . 16 . 17 9 45 13 40 . . Critical Kills 1 | . . . . . . . 1 . . Critical Parts Destroyed . | . . . . . . . . . . Critical Strikes 5 | . 1 . 1 1 1 . 1 . . Burn 4 | . 1 . 1 1 1 . . . . Destroy 1 | . . . . . . . 1 . . Melee Attacks . | . . . . . . . . . . Impact . | . . . . . . . . . . Slashing . | . . . . . . . . . . Piercing . | . . . . . . . . . . Sneak Attacks . | . . . . . . . . . . Combat Hostiles . | . . . . . . . . . . Follow-up Attacks . | . . . . . . . . . . Damage Inflicted 4406 | . 457 43 492 282 1277 586 1269 . . Guns 3412 | . 42 43 486 282 963 379 1217 . . Cannons . | . . . . . . . . . . Explosions 941 | . 412 . . . 312 192 25 . . Melee . | . . . . . . . . . . Ramming 53 | . 3 . 6 . 2 15 27 . . Kinetic 2019 | . . . 157 . 266 379 1217 . . Thermal 1690 | . 42 43 314 282 1009 . . . . Explosive 629 | . 412 . . . . 192 25 . . Electromagnetic 15 | . . . 15 . . . . . . Impact . | . . . . . . . . . . Slashing . | . . . . . . . . . . Piercing . | . . . . . . . . . . Highest Corruption 5 | . . . 5 . 2 . . . . Average Corruption 4 | . . . 5 . 2 . . . . Corruption Purged . | . . . . . . . . . . Corruption Blocked . | . . . . . . . . . . Effects 8 | . . . 7 . 1 . . . . Message Errors 2 | . . . 1 . 1 . . . . Heat Flow Errors 2 | . . . 2 . . . . . . Data Loss (minor) 1 | . . . 1 . . . . . . Alerts 2 | . . . 2 . . . . . . Weapon Failures 1 | . . . 1 . . . . . . Overload Shots . | . . . . . . . . . . Overflow Damage 111 | . 11 . . . 100 . . . . Projectiles . | . . . . . . . . . . Explosions 111 | . 11 . . . 100 . . . . Melee . | . . . . . . . . . . Knockbacks . | . . . . . . . . . . Impact . | . . . . . . . . . . Kinetic . | . . . . . . . . . . Secondary . | . . . . . . . . . . Self-Inflicted Damage 49 | . . . . . . 49 . . . Shots 1 | . . . . . . 1 . . . Rammed 21 | . 3 . 2 . 4 2 10 . . Targets Rammed 21 | . 3 . 2 . 4 2 10 . . Kicked . | . . . . . . . . . . Crushed . | . . . . . . . . . . Highest Temperature 425 | . 183 48 146 216 425 24 258 . . Average Temperature 100 | . 75 28 43 118 140 12 64 . . Received Heat Transfer 1379 | . 210 . 201 117 557 114 180 . . Effects 7 | . . . . . 6 . 1 . . Shutdowns 3 | . . . . . 3 . . . . Energy Bleed 2 | . . . . . 2 . . . . Interference 1 | . . . . . . . 1 . . Damage (minor) 1 | . . . . . 1 . . . . Siege Activations . | . . . . . . . . . . Martial Activations . | . . . . . . . . . . Shielding Activations . | . . . . . . . . . . Robots Disrupted . | . . . . . . . . . . Combat Hostiles . | . . . . . . . . . . Robots Corrupted . | . . . . . . . . . . Combat Hostiles . | . . . . . . . . . . Parts Fried . | . . . . . . . . . . Impact Corruptions . | . . . . . . . . . . Robots Melted 1 | . . . . . 1 . . . . Combat Hostiles 1 | . . . . . 1 . . . . Parts Melted 3 | . . . . . 3 . . . . Heat Transferred 3380 | . 185 111 804 696 1584 . . . . Parts Sabotaged . | . . . . . . . . . . Parts Stolen . | . . . . . . . . . . Parts Stripped . | . . . . . . . . . . Power Chain Reactions . | . . . . . . . . . . Alert | -11 -10 -10 -9 -9 -8 -7 -7 -7 -7 ------- Run | Yrd Mat Min Mat Min Mat Fac Sto Rec Scr Maximum Alert Level 1 | . . . . . 1 1 1 . . Low Security (%) 86 | . 100 100 100 100 54 81 86 100 . Level 1 13 | . . . . . 45 18 13 . . Level 2 . | . . . . . . . . . . Level 3 . | . . . . . . . . . . Level 4 . | . . . . . . . . . . Level 5 . | . . . . . . . . . . High Security . | . . . . . . . . . . Max Security . | . . . . . . . . . . Sterilizations 1 | . . . 1 . . . . . . Peak Influence 298 | . 147 41 35 70 298 221 247 85 . Initial 95 | . . 41 . 1 19 95 91 85 . Average 91 | . 76 15 9 15 167 102 161 65 . Influence Increases 1625 | . 237 . 122 85 488 297 396 . . Destroy 0b10 Robot/C 820 | . 120 . 80 60 260 80 220 . . Destroy 0b10 Robot/NC 100 | . 10 . 15 15 15 20 25 . . Destroy Leader 200 | . 32 . 22 10 60 22 54 . . Allied During Kill 61 | . . . 5 . . . 56 . . Successful Hack 38 | . . . . . 24 . 14 . . Select Force Hacks 30 | . 30 . . . . . . . . Disable Machine 105 | . 15 . . . 45 30 15 . . Destroy Structure 106 | . 15 . . . 54 25 12 . . Lose Combat Pursuer 165 | . 15 . . . 30 120 . . . Influence Decreases 1625 | . 130 107 116 41 326 307 377 176 45 Entered New Map 511 | . . 66 . 5 31 117 111 136 45 Time Decay 929 | . 130 41 111 36 205 160 206 40 . Lost Part 160 | . . . . . 90 30 40 . . Lost Ally 25 | . . . 5 . . . 20 . . Squads Dispatched 18 | . 3 1 . . 6 5 3 . . Investigation 11 | . 2 1 . . 4 3 1 . . Extermination 1 | . . . . . . 1 . . . Reinforcement 6 | . 1 . . . 2 1 2 . . Assault . | . . . . . . . . . . Garrison . | . . . . . . . . . . Intercept . | . . . . . . . . . . Searches Triggered . | . . . . . . . . . . Construction Impeded 1 | . . . . . . . 1 . . Haulers Reinforced 1 | . . . . . . . 1 . . Active Scanning Responses . | . . . . . . . . . . Cargo Convoy Interrupts . | . . . . . . . . . . Stealth | -11 -10 -10 -9 -9 -8 -7 -7 -7 -7 --------- Run | Yrd Mat Min Mat Min Mat Fac Sto Rec Scr Distress Signals 10 | . 2 . 2 . 4 . 2 . . Communications Jammed . | . . . . . . . . . . Distress Signals . | . . . . . . . . . . Times Spotted 92 | . 14 . 7 3 28 19 20 . 1 Peak Tracking Total 13 | . 5 . 3 3 13 6 3 . 5 Tactical Retreats 7 | . 1 . . . 2 4 . . . Traps | -11 -10 -10 -9 -9 -8 -7 -7 -7 -7 ------- Run | Yrd Mat Min Mat Min Mat Fac Sto Rec Scr Traps Triggered 6 | . 3 . . . 2 1 . . . Indirectly . | . . . . . . . . . . Trap Hack Attempts . | . . . . . . . . . . Triggered . | . . . . . . . . . . Disarmed . | . . . . . . . . . . Reprogrammed . | . . . . . . . . . . Reused . | . . . . . . . . . . Traps Extracted . | . . . . . . . . . . Installed . | . . . . . . . . . . Triggered . | . . . . . . . . . . Machines | -11 -10 -10 -9 -9 -8 -7 -7 -7 -7 ---------- Run | Yrd Mat Min Mat Min Mat Fac Sto Rec Scr Machines Disabled 9 | . 2 . . . 3 2 1 . 1 Max in Single Turn 3 | . 1 . . . 3 1 1 . 1 Machines Repaired . | . . . . . . . . . . Machines Dismantled . | . . . . . . . . . . Machines Sabotaged . | . . . . . . . . . . Overloaded Fab Kills . | . . . . . . . . . . Hacking | -11 -10 -10 -9 -9 -8 -7 -7 -7 -7 --------- Run | Yrd Mat Min Mat Min Mat Fac Sto Rec Scr Machines Accessed 18 | . 2 1 1 . 5 6 3 . . Terminals 11 | . 1 . 1 . 4 3 2 . . Fabricators 2 | . . . . . . 2 . . . Repair Stations . | . . . . . . . . . . Recycling Units 3 | . 1 . . . 1 . 1 . . Scanalyzers 1 | . . . . . . 1 . . . Garrison Access . | . . . . . . . . . . Total Hacks 58 | . 5 1 3 . 20 15 14 . . Successful 24 | . 3 1 . . 11 3 6 . . Failed 34 | . 2 . 3 . 9 12 8 . . Catastrophic 8 | . 1 . 1 . . 4 2 . . Database Lockouts . | . . . . . . . . . . Manual 26 | . 5 . 3 . 12 4 2 . . Terminals 38 | . 2 . 3 . 15 9 9 . . Fabricators 5 | . . . . . . 5 . . . Repair Stations . | . . . . . . . . . . Recycling Units 13 | . 3 . . . 5 . 5 . . Scanalyzers 1 | . . . . . . 1 . . . Garrison Access . | . . . . . . . . . . Terminal Hacks 17 | . 1 1 . . 7 3 5 . . Robot Analysis 1 | . . . . . 1 . . . . Prototype ID Bank 2 | . . . . . 1 . 1 . . Open Door 1 | . . 1 . . . . . . . Branch Access Points 1 | . . . . . . 1 . . . Terminal Index 1 | . . . . . 1 . . . . Alert Level 2 | . . . . . 1 . 1 . . Locate Traps 2 | . . . . . . 1 1 . . Patrol Status 2 | . . . . . 1 . 1 . . Investigation Status 1 | . . . . . 1 . . . . Registered Components 1 | . . . . . 1 . . . . Zone Layout 3 | . 1 . . . . 1 1 . . Fabricator Hacks . | . . . . . . . . . . Repair Station Hacks . | . . . . . . . . . . Recycling Unit Hacks 3 | . 1 . . . 1 . 1 . . Report Inventory 3 | . 1 . . . 1 . 1 . . Scanalyzer . | . . . . . . . . . . Garrison Access Hacks . | . . . . . . . . . . Unauthorized Hacks 4 | . 1 . . . 3 . . . . Terminals 3 | . . . . . 3 . . . . Botnet 1 | . . . . . 1 . . . . Disrupt 1 | . . . . . 1 . . . . Operators 1 | . . . . . 1 . . . . Fabricators . | . . . . . . . . . . Repair Stations . | . . . . . . . . . . Recycling Units 1 | . 1 . . . . . . . . Tunnel 1 | . 1 . . . . . . . . Scanalyzers . | . . . . . . . . . . Garrison Access . | . . . . . . . . . . Data Cores Recovered . | . . . . . . . . . . Used . | . . . . . . . . . . Hacking Detections 16 | . 1 . 1 . 5 6 3 . . Full Trace Events 8 | . 1 . 1 . 2 3 1 . . Feedback Events . | . . . . . . . . . . Feedback Blocked . | . . . . . . . . . . Robot Schematics Acquired . | . . . . . . . . . . Robots Built . | . . . . . . . . . . Authchips . | . . . . . . . . . . Time . | . . . . . . . . . . Total Robot Build Rating . | . . . . . . . . . . Part Schematics Acquired . | . . . . . . . . . . Parts Built . | . . . . . . . . . . Authchips . | . . . . . . . . . . Time . | . . . . . . . . . . Total Part Build Rating . | . . . . . . . . . . Part Studies Acquired . | . . . . . . . . . . Parts Repaired . | . . . . . . . . . . Time . | . . . . . . . . . . Parts Recycled . | . . . . . . . . . . Recycled Matter . | . . . . . . . . . . Retrieved Matter . | . . . . . . . . . . Retrieved Components . | . . . . . . . . . . Parts Scanalyzed . | . . . . . . . . . . Part Schematics Acquired . | . . . . . . . . . . Parts Damaged . | . . . . . . . . . . Bothacking | -11 -10 -10 -9 -9 -8 -7 -7 -7 -7 ------------ Run | Yrd Mat Min Mat Min Mat Fac Sto Rec Scr Used RIF Installer . | . . . . . . . . . . Robots Hacked . | . . . . . . . . . . Non-combat . | . . . . . . . . . . Combat . | . . . . . . . . . . Robot Hacks Applied . | . . . . . . . . . . Relay Couplers Released . | . . . . . . . . . . Fabnet Peak Effective % . | . . . . . . . . . . Robots Rewired 1 | . . . . . . 1 . . . Allies Hacked . | . . . . . . . . . . Hacks Repelled . | . . . . . . . . . . Allies | -11 -10 -10 -9 -9 -8 -7 -7 -7 -7 -------- Run | Yrd Mat Min Mat Min Mat Fac Sto Rec Scr Total Allies 14 | . . 3 . . . 1 10 . . Largest Group 10 | . . 3 3 . . 1 10 9 9 Highest-Rated Group 173 | . . 40 40 . . 16 173 157 157 Highest-Rated Ally 29 | . . 16 16 . . 16 29 29 29 Total Orders . | . . . . . . . . . . Ally Attacks 58 | . . . 31 . . 2 15 . 10 Total Damage 712 | . . . 380 . . 18 197 . 117 Kills 10 | . . . 4 . . . 3 . 3 Allies Corrupted . | . . . . . . . . . . Allies Melted . | . . . . . . . . . . X0-1V1 Amusement Gains 194 | . 11 2 27 4 31 5 23 . 91 Average Entertainment 21 | . 17 10 22 14 31 16 15 21 100 Good Acts 11 | . 3 2 3 1 2 . . . . Bad Acts 20 | . 1 . 4 2 3 7 3 . . Intel | -11 -10 -10 -9 -9 -8 -7 -7 -7 -7 ------- Run | Yrd Mat Min Mat Min Mat Fac Sto Rec Scr Active Infowar (turns) 1313 | . . . 202 . . 245 424 95 347 Optics 1021 | . . . 39 . . 116 424 95 347 Sensors 252 | . . . . . . 229 23 . . T.N.C. 286 | . . . . . . 245 41 . . Machine Analysis 163 | . . . 163 . . . . . . Robot Analysis Total 1 | . . . . . 1 . . . . Derelict Logs Recovered 2 | . . 1 . 1 . . . . . Drone Launches . | . . . . . . . . . . Drone Recoveries . | . . . . . . . . . . Exploration | -11 -10 -10 -9 -9 -8 -7 -7 -7 -7 ------------- Run | Yrd Mat Min Mat Min Mat Fac Sto Rec Scr Turns Passed 2967 | . 321 130 454 226 492 330 424 95 495 Spaces Moved 1951 | 1 213 73 221 124 360 404 193 59 303 Core 42 | . . . . . 9 33 . . . Treads 903 | . 6 58 221 106 . . 150 59 303 Legs 223 | 1 207 15 . . . . . . . Wheels 369 | . . . . 18 351 . . . . Hover 414 | . . . . . . 371 43 . . Flight . | . . . . . . . . . . Fastest Speed 45 | 120 120 120 160 100 50 45 51 160 160 Average Speed 119 | 120 121 151 160 156 99 53 135 160 160 Slowest Speed 300 | 120 160 160 240 240 300 120 160 160 160 Overloaded Moves 21 | . . . . . . 21 . . . Propulsion Burnouts . | . . . . . . . . . . Robots Hopped . | . . . . . . . . . . Potential Cave-ins 2 | . . . . . . 2 . . . Cave-ins Triggered . | . . . . . . . . . . Exploration Rate (%) 22 | 2 35 17 18 35 34 18 27 12 29 Regions Visited 9 Branch Regions 5 Pre-discovered Areas 4 | . 1 1 . 1 . . 1 . . Known Exits Taken 2 | . . 1 . . . 1 . . . Unknown Exits Taken 7 | 1 1 . 1 1 1 . 1 1 . Scrap Searched 2 | . . . . . . . . . 2 Spaces Dug . | . . . . . . . . . . Terrain Destroyed 133 | . 29 . . . 63 29 12 . . Melee . | . . . . . . . . . . Projectile . | . . . . . . . . . . AOE 133 | . 29 . . . 63 29 12 . . Terrain Rammed . | . . . . . . . . . . Walls Destroyed . | . . . . . . . . . . Machines Disabled . | . . . . . . . . . . Actions | -11 -10 -10 -9 -9 -8 -7 -7 -7 -7 --------- Run | Yrd Mat Min Mat Min Mat Fac Sto Rec Scr Total 2352 | . 252 89 275 141 450 489 284 60 312 Wait 57 | . 4 3 4 1 16 1 23 1 4 Move 1942 | . 212 72 220 123 359 403 192 58 303 Hop . | . . . . . . . . . . Pick Up 36 | . 2 5 2 3 14 4 5 . 1 Fast Attach 32 | . 3 1 6 2 4 12 3 . 1 Attach 24 | . 4 1 2 . 3 7 6 1 . Detach 19 | . 3 . 4 . 5 4 2 . 1 Swap 36 | . . 2 11 . 10 2 11 . . Drop 35 | . 1 3 4 4 15 4 4 . . Fire 120 | . 20 2 20 8 20 21 28 . 1 Melee . | . . . . . . . . . . Ram 6 | . . . . . 4 2 . . . Kick . | . . . . . . . . . . Crush 15 | . 3 . 2 . . . 10 . . Escape Stasis . | . . . . . . . . . . Rewire 30 | . . . . . . 29 . . 1 Trap . | . . . . . . . . . . Miscellaneous . | . . . . . . . . . . Route ------- -11/Scrapyard -10/Materials (discovered 3 exits: Mat / *Min / [*Sub]) -10/Mines -9/Materials -9/Mines -8/Materials -7/Factory (discovered 4 exits: [*Fac] / *Sto / Low x2) -7/Storage -7/Recycling -7/Scraptown History --------- Turn | Location | Event 1 | -11/Scrapyard | Discovered new exit (range 0) 1 | -11/Scrapyard | Entered Materials 126 | -10/Materials | Discovered new exit (range 9) 165 | -10/Materials | Made a sacrifice at D.C.S.S. Altar Unit 165 | -10/Materials | Forcibly received Sfc. Transmogifier from X0-1V1 257 | -10/Materials | Identified exit to Materials 257 | -10/Materials | X0-1V1 revealed exit location to -9/Materials 268 | -10/Materials | X0-1V1 vaporized surrounding terrain (radius 15) 287 | -10/Materials | Discovered new exit (range 7) 307 | -10/Materials | X0-1V1 activates XOMVISION 322 | -10/Materials | Entered Mines 324 | -10/Mines | Propulsion slot count permanently improved by X0-1V1 (+1) 331 | -10/Mines | Met a Derelict shopkeep closing up shop 387 | -10/Mines | Build established: Mutant 420 | -10/Mines | Discovered exit to Materials (range 8) 429 | -10/Mines | Assisted by bots powering up and referring to "LRC-V3" 452 | -10/Mines | Entered Materials 452 | -9/Materials | Accompanied by 3 allies 452 | -9/Materials | Evolved 2 slots: Utility x2 471 | -9/Materials | X0-1V1 vaporized surrounding terrain (radius 15) 539 | -9/Materials | X0-1V1 made a cryptic comment about sterilization and BL-4Z3 693 | -9/Materials | X0-1V1 upgraded hostiles (x1) 702 | -9/Materials | Melee accuracy permanently improved by X0-1V1 (+5%; -50 max core) 720 | -9/Materials | Sterilization system engaged 720 | -9/Materials | Non-combat units ordered to evacuate 747 | -9/Materials | X0-1V1 mutated your Propulsion slot to Weapon slot 820 | -9/Materials | Combat units ordered to evacuate 843 | -9/Materials | Discovered new exit (range 16) 906 | -9/Materials | Entered Mines 929 | -9/Mines | X0-1V1 mutated your Weapon slot to Power slot 957 | -9/Mines | Found a Scrap Suit stashed away for nefarious purposes 1125 | -9/Mines | Discovered new exit (range 7) 1132 | -9/Mines | Entered Materials 1132 | -8/Materials | Evolved 2 slots: Weapon x2 1145 | -8/Materials | X0-1V1 redirected Transport squads to designated parking area 1496 | -8/Materials | Core integrity permanently improved by X0-1V1 (+400) 1598 | -8/Materials | Discovered new exit (range 15) 1617 | -8/Materials | Core integrity fell below 50% 1621 | -8/Materials | Core integrity fell below 20% 1624 | -8/Materials | Entered Factory 1624 | -7/Factory | Evolved 2 slots: Propulsion x1, Utility x1 1649 | -7/Factory | Lost 7 parts (1p3n3u) 1809 | -7/Factory | Identified exit to Storage 1809 | -7/Factory | Identified exit to Lower Caves 1860 | -7/Factory | Discovered new exit (range 16) 1911 | -7/Factory | X0-1V1 vaporized surrounding terrain (radius 24) 1954 | -7/Factory | Entered Storage 1964 | -7/Storage | Learned location of Armory (-3) 1964 | -7/Storage | X0-1V1 enhanced Transport squad support 2025 | -7/Storage | Lost 3 parts (1n1u1w) 2258 | -7/Storage | Discovered new exit (range 7) 2259 | -7/Storage | Assisted by bots powering up and referring to "LRC-V3" 2267 | -7/Storage | X0-1V1 upgraded hostiles (x1) 2357 | -7/Storage | Used back door to open Recycling access 2378 | -7/Storage | Entered Recycling 2378 | -7/Recycling | Accompanied by 9 allies 2424 | -7/Recycling | Scanned before Scraplab entrance 2448 | -7/Recycling | Entered Scraplab 2463 | -7/Recycling | Discovered new exit (range 3) 2473 | -7/Recycling | Entered Scraptown 2473 | -7/Scraptown | Accompanied by 9 allies 2557 | -7/Scraptown | Build established: Commander-Gunner 2690 | -7/Scraptown | Heard Great Nut preacher, LISTEN AND RECITE! 2952 | -7/Scraptown | Attacked by Scraptown defenders 2968 | -7/Scraptown | Self-destructed Last Messages --------------- 02737_ WW-2AF(j): "Sheesh, hacking them would be faster, you doltbolts..." 02786_ Sfc. Transmogrifier converts Barrage Gun into Imp. Spread Laser. 02820_ Sfc. Transmogrifier converts Adv. Visual Processing Unit into Cryofiber Web. 02846_ Sfc. Transmogrifier converts Imp. Spread Laser into Lrn. Missile Launcher. 02952_ Machine disabled. 02952_ ANNOUNCEMENT: Intruder alert! Defend Scraptown! 02952_ X0-1V1 roars with laughter! 02956_ Trooper 4g destroyed. 02958_ Trooper 4j destroyed. 02959_ OW-HUX(x) destroyed. 02966_ Attempting to rewire Wyrm Statue. 02966_ Wyrm Statue cannot be rewired. 02967_ Searching scrap... 02967_ Found Mak. Laser. 02967_ Found Gauss Cannon. 02967_ Found System Restoration Module. 02967_ Found Scythe. 02967_ Found 69 Matter. Map ----- +----------------------------------------------------+ | ??????????????????# #?#" ?? "??????" ???????? | | ??????????????????# #?#"""????""??????""???????? | | ??????????#####???# #??###????????????##???????? | | ??????????#"""#???# #??????????????????????????? | | ??????????#" "#???# #??????????????????######### | | ??????????# #???# #??????????????????#"""""""" | | ??????????# ##### #??????????????????#""""" "" | | ??????????# ##???????????#######"""" " | | ??????????# #???????????# | | ??????????# ##??#####?#### #####"" "" " | | ??????????##### ### ##??#"""""?#""" "#??#"""""""" | | ??????????????# #?###????"" ""?#""" "#??#"""""""" | | ?????????###### ######??#"" "##""" "#??######### | | ?????????#""""" """""#??#" ""##"" "#?########## | | ?????????#"""%" " "#??#"" ""##"" "#?#""""""""" | | ?????????#" [ "#??#"" ""##" "#?#""!! ]! / | | ?????????#""""" """""#??#"" ""##"| "#?#""!!! !*] | | ?????????###### ######??#" ""##"" "#?#"" | | ??????######### #########"" ""##"" ""###""" """"" | | = | | ggg gg*= | | ??###"""" """"######""""%"""" ######""" """##""" " | | ????#""" """?????#" g=g= "#????#"" |"##"" | | ?????""" ""?????#" !%/ "#????#" ""##"" | | ?????"""" ??????#" !]DD "#????#" ""##" | | ??????"""" ??????#"""""@DD "#????#" | | ???????"""?"???????#""""""""""#????#"""""""##""""" | | ???????????#???????############????############### | | | | | | | | | | | | | | | | | | | | | | | | | | | | | | | | | | | | | | | | | | | | | +----------------------------------------------------+ Best States ------------- Heat Dissipation 113 Energy Generation 44 Energy Capacity 1370 Matter Stores 300 Matter Capacity 300 Sight Range 20 Robot Scan Range 15 Terrain Scan Density 10 Base Temperature (-) 100 Corruption Block 8 Armor Coverage 300 Power Shielding 66 Utility Shielding 15 Evasion (%) 56 Target Analysis 6 Core Analysis 6 Recoil Reduction 3 Particle Charging 15 Defensive Hacking 10 Item Schematics ----------------- None Robot Schematics ------------------ None Fabricated ------------ Nothing Repaired ---------- Nothing Studied --------- None Alien Tech Used ----------------- None Achievements -------------- None Challenges ------------ None Game ------ Seed LargeSingularityDrive Manual? 0 Play Time 00:23:28 Cumulative 1375.5 hours Start 2026.08.20 @ 16:35:30 End 2026.08.20 @ 18:19:42 Sessions 5 Manual Loads 0 Difficulty Rogue Special Mode None Game No. 1687 Rogue 1403 Adventurer 124 Explorer 160 Win Type - Total 72 Types 55/0/11/4/1/0/0/1/0/0 Lore% 92 Gallery% 84 Achievement% 74 Wizard Run 0 Options --------- Layout 0 ASCII 0 Keyboard 1 Movement Numpad Keybinds 0 Fullscreen 2 Font 18/X11 Map View 76x50 Zoom Use 3% Tactical HUD 1 Map Filters NONE Filters NONE Steam 1 RUN: 48feb18d-6f83-4065-9a43-54c71df5279c